[Event "Late-Titled-Tuesday-Blitz-October-10-2023"]
[Site "Chess.com"]
[Date "2023.10.10"]
[Round "11"]
[White "greekplayer1"]
[Black "ContrVersia"]
[Result "0-1"]
[WhiteElo "2710"]
[BlackElo "2885"]
[TimeControl "180+1"]
[EndTime "16:00:18 PDT"]
[Termination "ContrVersia won on time"]

1. e4 {[%clk 0:03:00.9]} 1... c5 {[%clk 0:02:59.8]} 2. Nf3 {[%clk 0:03:00.5]}
2... a6 {[%clk 0:03:00.1]} 3. c3 {[%clk 0:02:58.8]} 3... d5 {[%clk 0:02:59.5]}
4. exd5 {[%clk 0:02:53]} 4... Qxd5 {[%clk 0:03:00.4]} 5. d4 {[%clk 0:02:53.2]}
5... Bg4 {[%clk 0:03:00.5]} 6. Be2 {[%clk 0:02:52.8]} 6... Nf6 {[%clk
0:03:00.3]} 7. h3 {[%clk 0:02:52.4]} 7... Bh5 {[%clk 0:02:59.7]} 8. O-O {[%clk
0:02:51.6]} 8... e6 {[%clk 0:02:59.8]} 9. Be3 {[%clk 0:02:39.4]} 9... cxd4
{[%clk 0:02:59.5]} 10. Nxd4 {[%clk 0:02:35.9]} 10... Bxe2 {[%clk 0:02:59.4]} 11.
Qxe2 {[%clk 0:02:36.8]} 11... Be7 {[%clk 0:02:59.6]} 12. Rd1 {[%clk 0:02:37.3]}
12... O-O {[%clk 0:02:59.4]} 13. Nd2 {[%clk 0:02:37.4]} 13... Nc6 {[%clk
0:02:56.1]} 14. N2f3 {[%clk 0:02:36.9]} 14... Rac8 {[%clk 0:02:53.7]} 15. Nxc6
{[%clk 0:02:29.1]} 15... Qxc6 {[%clk 0:02:54.6]} 16. Bd4 {[%clk 0:02:24.6]}
16... Rfd8 {[%clk 0:02:52.6]} 17. Ne5 {[%clk 0:02:24.5]} 17... Qc7 {[%clk
0:02:52.4]} 18. Qf3 {[%clk 0:02:22.6]} 18... Rd5 {[%clk 0:02:50.5]} 19. Ng4
{[%clk 0:02:11]} 19... Nxg4 {[%clk 0:02:33.8]} 20. Qxg4 {[%clk 0:02:11.9]} 20...
g6 {[%clk 0:02:34.1]} 21. Be3 {[%clk 0:01:55.9]} 21... Rcd8 {[%clk 0:02:32.5]}
22. Rxd5 {[%clk 0:01:53.6]} 22... Rxd5 {[%clk 0:02:33.4]} 23. Re1 {[%clk
0:01:53.8]} 23... b5 {[%clk 0:02:27.1]} 24. Bd4 {[%clk 0:01:52.3]} 24... Qc4
{[%clk 0:02:18.7]} 25. b3 {[%clk 0:01:46.3]} 25... Qd3 {[%clk 0:02:16.6]} 26.
Qf4 {[%clk 0:01:31.7]} 26... b4 {[%clk 0:01:54.2]} 27. Rc1 {[%clk 0:00:45.8]}
27... Bg5 {[%clk 0:01:33.6]} 28. Qb8+ {[%clk 0:00:17.3]} 28... Rd8 {[%clk
0:01:33.4]} 29. Qe5 {[%clk 0:00:17.3]} 29... Rxd4 {[%clk 0:01:32.6]} 30. Qxg5
{[%clk 0:00:17]} 30... bxc3 {[%clk 0:01:30.6]} 31. Qc5 {[%clk 0:00:17.3]} 31...
Rd8 {[%clk 0:01:16.1]} 32. Rxc3 {[%clk 0:00:16.7]} 32... Qb1+ {[%clk 0:01:14.6]}
33. Kh2 {[%clk 0:00:16]} 33... Qxa2 {[%clk 0:01:14.6]} 34. Qe7 {[%clk
0:00:14.5]} 34... Rf8 {[%clk 0:01:13.9]} 35. Qf6 {[%clk 0:00:12.5]} 35... Qd2
{[%clk 0:01:08.4]} 36. h4 {[%clk 0:00:09.3]} 36... h5 {[%clk 0:01:04.9]} 37. Rg3
{[%clk 0:00:03.3]} 37... Qd6 {[%clk 0:01:03.4]} 38. Kh3 {[%clk 0:00:03.3]} 38...
Kh7 {[%clk 0:00:58.2]} 39. Rg5 {[%clk 0:00:02.5]} 39... Qd8 {[%clk 0:00:57.2]}
40. Qxd8 {[%clk 0:00:02.3]} 40... Rxd8 {[%clk 0:00:57]} 41. g3 {[%clk
0:00:01.5]} 41... Rd5 {[%clk 0:00:54.4]} 42. Rxd5 {[%clk 0:00:01.1]} 42... exd5
{[%clk 0:00:54.6]} 0-1

[Event "Late-Titled-Tuesday-Blitz-October-10-2023"]
[Site "Chess.com"]
[Date "2023.10.10"]
[Round "11"]
[White "aNaartjieZA"]
[Black "Dannyyi"]
[Result "0-1"]
[WhiteElo "2540"]
[BlackElo "2393"]
[TimeControl "180+1"]
[EndTime "16:00:18 PDT"]
[Termination "Dannyyi won by resignation"]

1. e4 {[%clk 0:03:00.9]} 1... c5 {[%clk 0:02:59.6]} 2. Nf3 {[%clk 0:03:01.1]}
2... Nc6 {[%clk 0:02:59.8]} 3. g3 {[%clk 0:03:01.6]} 3... g6 {[%clk 0:02:59.6]}
4. Bg2 {[%clk 0:03:01.9]} 4... Bg7 {[%clk 0:03:00]} 5. O-O {[%clk 0:03:02.6]}
5... e6 {[%clk 0:03:00.4]} 6. d3 {[%clk 0:03:02.1]} 6... Nge7 {[%clk 0:03:00.7]}
7. Re1 {[%clk 0:03:01.7]} 7... O-O {[%clk 0:03:00.5]} 8. c3 {[%clk 0:03:02]}
8... d5 {[%clk 0:03:00.1]} 9. e5 {[%clk 0:03:01.9]} 9... Rb8 {[%clk 0:02:59]}
10. a4 {[%clk 0:02:59.8]} 10... a6 {[%clk 0:02:58.3]} 11. h4 {[%clk 0:03:00]}
11... b5 {[%clk 0:02:53.9]} 12. axb5 {[%clk 0:03:00]} 12... axb5 {[%clk
0:02:54.8]} 13. Bf4 {[%clk 0:03:00]} 13... b4 {[%clk 0:02:52.8]} 14. Nbd2 {[%clk
0:02:59.7]} 14... bxc3 {[%clk 0:02:52.1]} 15. bxc3 {[%clk 0:02:59.2]} 15... Bb7
{[%clk 0:02:42.8]} 16. Nb3 {[%clk 0:02:53.5]} 16... c4 {[%clk 0:02:32.6]} 17.
Nc5 {[%clk 0:02:53.6]} 17... cxd3 {[%clk 0:02:29.6]} 18. Qxd3 {[%clk 0:02:53.7]}
18... Bc8 {[%clk 0:02:22.5]} 19. Nd4 {[%clk 0:02:39]} 19... Qb6 {[%clk
0:02:08.5]} 20. Na4 {[%clk 0:02:32]} 20... Qc7 {[%clk 0:02:03]} 21. Nf3 {[%clk
0:01:57.9]} 21... Na5 {[%clk 0:01:58.1]} 22. Bf1 {[%clk 0:01:55.8]} 22... Nc4
{[%clk 0:01:56.3]} 23. Nd4 {[%clk 0:01:55.4]} 23... Bd7 {[%clk 0:01:46.7]} 24.
Bg5 {[%clk 0:01:52.3]} 24... Nc6 {[%clk 0:01:32.2]} 25. Qd1 {[%clk 0:01:21.1]}
25... N4xe5 {[%clk 0:01:25.6]} 26. Bf4 {[%clk 0:01:20.1]} 26... Rbc8 {[%clk
0:01:04.5]} 27. Nc5 {[%clk 0:01:05.6]} 27... Qd6 {[%clk 0:00:59.7]} 28. Nb7
{[%clk 0:00:54.1]} 28... Qc7 {[%clk 0:00:56.1]} 29. Nc5 {[%clk 0:00:53.3]} 29...
Qd8 {[%clk 0:00:55.5]} 30. Nxc6 {[%clk 0:00:48.8]} 30... Nxc6 {[%clk 0:00:54]}
31. Bd6 {[%clk 0:00:37.2]} 31... Re8 {[%clk 0:00:52]} 32. Qb3 {[%clk 0:00:33.1]}
32... Ne7 {[%clk 0:00:46.7]} 33. Ra7 {[%clk 0:00:30.1]} 33... Bc6 {[%clk
0:00:44.3]} 34. Bf4 {[%clk 0:00:22.2]} 34... Nf5 {[%clk 0:00:41.3]} 35. Bd3
{[%clk 0:00:19.1]} 35... d4 {[%clk 0:00:33.2]} 36. Bxf5 {[%clk 0:00:18.9]} 36...
exf5 {[%clk 0:00:29.4]} 37. Rxe8+ {[%clk 0:00:18.4]} 37... Qxe8 {[%clk
0:00:30.3]} 0-1

[Event "Late-Titled-Tuesday-Blitz-October-10-2023"]
[Site "Chess.com"]
[Date "2023.10.10"]
[Round "11"]
[White "rickywsb"]
[Black "cande_francisco"]
[Result "1-0"]
[WhiteElo "2391"]
[BlackElo "2516"]
[TimeControl "180+1"]
[EndTime "16:00:20 PDT"]
[Termination "rickywsb won by resignation"]

1. d4 {[%clk 0:03:00.9]} 1... Nf6 {[%clk 0:02:59.7]} 2. Bf4 {[%clk 0:03:01.3]}
2... d5 {[%clk 0:02:59.7]} 3. e3 {[%clk 0:03:01.3]} 3... c5 {[%clk 0:03:00]} 4.
c3 {[%clk 0:02:58]} 4... Nc6 {[%clk 0:03:00]} 5. Nd2 {[%clk 0:02:57.9]} 5... e6
{[%clk 0:02:58.2]} 6. Ngf3 {[%clk 0:02:58.1]} 6... Bd6 {[%clk 0:02:58.4]} 7. Bg3
{[%clk 0:02:58.5]} 7... O-O {[%clk 0:02:57.7]} 8. Bd3 {[%clk 0:02:58.7]} 8...
Re8 {[%clk 0:02:54.6]} 9. Ne5 {[%clk 0:02:58.2]} 9... Qc7 {[%clk 0:02:51.9]} 10.
f4 {[%clk 0:02:55.9]} 10... Rb8 {[%clk 0:02:37.3]} 11. Bh4 {[%clk 0:02:52.6]}
11... Bxe5 {[%clk 0:02:26.8]} 12. fxe5 {[%clk 0:02:49.9]} 12... Nd7 {[%clk
0:02:26.6]} 13. O-O {[%clk 0:02:43.6]} 13... Nf8 {[%clk 0:02:25.6]} 14. Nf3
{[%clk 0:02:29.8]} 14... h6 {[%clk 0:02:22]} 15. Bg3 {[%clk 0:02:15.9]} 15... c4
{[%clk 0:02:05.6]} 16. Bc2 {[%clk 0:02:11.8]} 16... b5 {[%clk 0:02:05.8]} 17. a3
{[%clk 0:01:54.4]} 17... a5 {[%clk 0:02:05.8]} 18. Nh4 {[%clk 0:01:51.4]} 18...
b4 {[%clk 0:02:04]} 19. axb4 {[%clk 0:01:49.1]} 19... axb4 {[%clk 0:02:04.2]}
20. Qg4 {[%clk 0:01:42.5]} 20... b3 {[%clk 0:01:42.4]} 21. Bb1 {[%clk 0:01:39]}
21... Bb7 {[%clk 0:01:42.1]} 22. Bf4 {[%clk 0:01:32.8]} 22... Kh8 {[%clk
0:01:36.6]} 23. Qh5 {[%clk 0:01:30.3]} 23... Re7 {[%clk 0:00:57.6]} 24. Rf3
{[%clk 0:01:12.8]} 24... Nh7 {[%clk 0:00:50.9]} 25. Bxh6 {[%clk 0:01:06.1]}
25... gxh6 {[%clk 0:00:31.4]} 26. Qxh6 {[%clk 0:01:07]} 26... f5 {[%clk
0:00:32.1]} 27. exf6 {[%clk 0:01:03.1]} 27... Rf7 {[%clk 0:00:32.8]} 28. Rg3
{[%clk 0:00:37.1]} 28... Rxf6 {[%clk 0:00:28.9]} 29. Ng6+ {[%clk 0:00:35.4]}
29... Rxg6 {[%clk 0:00:18.7]} 30. Bxg6 {[%clk 0:00:35.4]} 30... Qg7 {[%clk
0:00:09.4]} 31. Qh5 {[%clk 0:00:24.3]} 31... Ne7 {[%clk 0:00:07.4]} 32. Bxh7
{[%clk 0:00:22.5]} 32... Qxh7 {[%clk 0:00:07.8]} 33. Qe5+ {[%clk 0:00:22.8]} 1-0

[Event "Late-Titled-Tuesday-Blitz-October-10-2023"]
[Site "Chess.com"]
[Date "2023.10.10"]
[Round "11"]
[White "TanitoluwaAps116"]
[Black "Eloist"]
[Result "1-0"]
[WhiteElo "2666"]
[BlackElo "2441"]
[TimeControl "180+1"]
[EndTime "16:00:22 PDT"]
[Termination "TanitoluwaAps116 won by resignation"]

1. e4 {[%clk 0:02:54.9]} 1... e6 {[%clk 0:02:56.7]} 2. d4 {[%clk 0:02:54.7]}
2... d5 {[%clk 0:02:56.3]} 3. exd5 {[%clk 0:02:48.5]} 3... exd5 {[%clk
0:02:55.7]} 4. Nf3 {[%clk 0:02:49]} 4... Bf5 {[%clk 0:02:54.5]} 5. Bd3 {[%clk
0:02:48]} 5... Bxd3 {[%clk 0:02:54]} 6. Qxd3 {[%clk 0:02:48.9]} 6... Nc6 {[%clk
0:02:53.7]} 7. O-O {[%clk 0:02:46.8]} 7... Bd6 {[%clk 0:02:53.6]} 8. c4 {[%clk
0:02:43.3]} 8... dxc4 {[%clk 0:02:50]} 9. Qxc4 {[%clk 0:02:42.7]} 9... Nge7
{[%clk 0:02:49.7]} 10. Nc3 {[%clk 0:02:42.5]} 10... O-O {[%clk 0:02:49.3]} 11.
Re1 {[%clk 0:02:40.3]} 11... Qd7 {[%clk 0:02:48.8]} 12. Bg5 {[%clk 0:02:38.5]}
12... Nf5 {[%clk 0:02:43.5]} 13. Rad1 {[%clk 0:02:35.7]} 13... Rfe8 {[%clk
0:02:42.8]} 14. Ne5 {[%clk 0:02:28.9]} 14... Qe6 {[%clk 0:02:06.7]} 15. Qxe6
{[%clk 0:02:22.7]} 15... Rxe6 {[%clk 0:01:59.5]} 16. Nxc6 {[%clk 0:02:16.8]}
16... Rxe1+ {[%clk 0:01:56.6]} 17. Rxe1 {[%clk 0:02:16.1]} 17... bxc6 {[%clk
0:01:57.5]} 18. Be3 {[%clk 0:02:13]} 18... Re8 {[%clk 0:01:42.6]} 19. Re2 {[%clk
0:01:59.6]} 19... Nxe3 {[%clk 0:01:29.9]} 20. Rxe3 {[%clk 0:01:57.9]} 20... Rb8
{[%clk 0:01:15.4]} 21. b3 {[%clk 0:01:54.4]} 21... c5 {[%clk 0:01:13.5]} 22.
dxc5 {[%clk 0:01:50.6]} 22... Bxc5 {[%clk 0:01:13.1]} 23. Rd3 {[%clk 0:01:51.2]}
23... Kf8 {[%clk 0:01:07.5]} 24. Kf1 {[%clk 0:01:50.4]} 24... Ke8 {[%clk
0:01:05]} 25. Ke2 {[%clk 0:01:48.6]} 25... Rd8 {[%clk 0:01:03.1]} 26. f4 {[%clk
0:01:39.5]} 26... Rxd3 {[%clk 0:01:01]} 27. Kxd3 {[%clk 0:01:40.4]} 27... Kd7
{[%clk 0:00:59.8]} 28. h3 {[%clk 0:01:36.5]} 28... Ke6 {[%clk 0:00:52.3]} 29. g4
{[%clk 0:01:35.4]} 29... f5 {[%clk 0:00:50.9]} 30. Kc4 {[%clk 0:01:30.9]} 30...
Bd6 {[%clk 0:00:44.4]} 31. Ne2 {[%clk 0:01:13.1]} 31... fxg4 {[%clk 0:00:32.4]}
32. hxg4 {[%clk 0:01:14]} 32... g6 {[%clk 0:00:31.6]} 33. Kd3 {[%clk 0:01:06.8]}
33... h5 {[%clk 0:00:30.7]} 34. f5+ {[%clk 0:00:55.9]} 34... gxf5 {[%clk
0:00:26.1]} 35. Nd4+ {[%clk 0:00:47.5]} 35... Kf6 {[%clk 0:00:22.9]} 36. gxh5
{[%clk 0:00:45.7]} 36... Kg5 {[%clk 0:00:19.8]} 37. h6 {[%clk 0:00:44]} 37... f4
{[%clk 0:00:13.7]} 38. h7 {[%clk 0:00:40.9]} 38... Be5 {[%clk 0:00:12.8]} 39.
Nf3+ {[%clk 0:00:41.1]} 39... Kg6 {[%clk 0:00:12.9]} 40. Nxe5+ {[%clk 0:00:42]}
40... Kxh7 {[%clk 0:00:13.1]} 41. Ke4 {[%clk 0:00:42.4]} 41... Kg7 {[%clk
0:00:13.1]} 42. Kxf4 {[%clk 0:00:43]} 42... Kf6 {[%clk 0:00:13]} 43. Ke4 {[%clk
0:00:43.6]} 43... Ke6 {[%clk 0:00:13.2]} 44. Kd4 {[%clk 0:00:44.1]} 44... Kd6
{[%clk 0:00:13.4]} 45. Nc4+ {[%clk 0:00:44.1]} 45... Kc6 {[%clk 0:00:13.4]} 46.
a4 {[%clk 0:00:44.8]} 46... a6 {[%clk 0:00:11.9]} 47. b4 {[%clk 0:00:44.6]}
47... Kb7 {[%clk 0:00:11.4]} 48. Kc5 {[%clk 0:00:45.2]} 1-0

[Event "Late-Titled-Tuesday-Blitz-October-10-2023"]
[Site "Chess.com"]
[Date "2023.10.10"]
[Round "11"]
[White "cthulhuuu"]
[Black "tylityli"]
[Result "0-1"]
[WhiteElo "2447"]
[BlackElo "2354"]
[TimeControl "180+1"]
[EndTime "16:00:23 PDT"]
[Termination "tylityli won by resignation"]

1. e4 {[%clk 0:03:00.1]} 1... e5 {[%clk 0:02:59]} 2. Nf3 {[%clk 0:03:00.7]} 2...
Nc6 {[%clk 0:02:58.9]} 3. Bb5 {[%clk 0:03:00.4]} 3... a6 {[%clk 0:02:58.8]} 4.
Bxc6 {[%clk 0:03:00.9]} 4... dxc6 {[%clk 0:02:58.3]} 5. O-O {[%clk 0:03:01.8]}
5... Ne7 {[%clk 0:02:58.5]} 6. Nxe5 {[%clk 0:02:58.5]} 6... Qd4 {[%clk
0:02:58.2]} 7. Qh5 {[%clk 0:02:56.7]} 7... g6 {[%clk 0:02:57]} 8. Nf3 {[%clk
0:02:53.3]} 8... Qxe4 {[%clk 0:02:53.2]} 9. Nc3 {[%clk 0:02:52]} 9... Qf5 {[%clk
0:02:47.1]} 10. Qh4 {[%clk 0:02:50.2]} 10... Be6 {[%clk 0:02:45.5]} 11. Nd4
{[%clk 0:02:24.1]} 11... Qe5 {[%clk 0:02:42.7]} 12. Nxe6 {[%clk 0:02:16.9]}
12... Qxe6 {[%clk 0:02:42]} 13. d4 {[%clk 0:02:14.5]} 13... O-O-O {[%clk
0:02:38.4]} 14. Bg5 {[%clk 0:01:28.3]} 14... Nf5 {[%clk 0:02:35.6]} 15. Qh3
{[%clk 0:01:28.8]} 15... f6 {[%clk 0:02:24.9]} 16. Rfe1 {[%clk 0:01:21.1]} 16...
Qf7 {[%clk 0:02:24]} 17. Be3 {[%clk 0:01:10.3]} 17... Kb8 {[%clk 0:02:22.7]} 18.
Rad1 {[%clk 0:01:10.8]} 18... h5 {[%clk 0:02:18.2]} 19. Qf3 {[%clk 0:01:01.2]}
19... Bd6 {[%clk 0:02:03.8]} 20. Ne4 {[%clk 0:01:00.4]} 20... Rhe8 {[%clk
0:02:03.3]} 21. b3 {[%clk 0:00:53.4]} 21... Nh4 {[%clk 0:01:52.8]} 22. Nxd6
{[%clk 0:00:51.3]} 22... cxd6 {[%clk 0:01:50.7]} 23. Qh3 {[%clk 0:00:44.4]}
23... g5 {[%clk 0:01:46.7]} 24. f4 {[%clk 0:00:33.8]} 24... Qg6 {[%clk
0:01:37.8]} 25. Bf2 {[%clk 0:00:23]} 25... Nf5 {[%clk 0:01:36]} 26. fxg5 {[%clk
0:00:22.2]} 26... fxg5 {[%clk 0:01:34.6]} 27. c4 {[%clk 0:00:20.6]} 27... g4
{[%clk 0:01:23.6]} 28. Qd3 {[%clk 0:00:21.1]} 28... Qg5 {[%clk 0:01:17.8]} 29.
d5 {[%clk 0:00:20.9]} 29... c5 {[%clk 0:01:16.2]} 30. b4 {[%clk 0:00:15.9]}
30... h4 {[%clk 0:01:05]} 31. bxc5 {[%clk 0:00:15.1]} 31... g3 {[%clk
0:01:04.8]} 32. Bd4 {[%clk 0:00:11.3]} 32... gxh2+ {[%clk 0:01:03.3]} 33. Kxh2
{[%clk 0:00:11.7]} 33... Nxd4 {[%clk 0:00:52.2]} 34. Qxd4 {[%clk 0:00:11.2]}
34... Rxe1 {[%clk 0:00:51.4]} 35. Rxe1 {[%clk 0:00:08.4]} 35... Qg3+ {[%clk
0:00:51.1]} 36. Kg1 {[%clk 0:00:09.3]} 36... Qxe1+ {[%clk 0:00:51]} 37. Kh2
{[%clk 0:00:09.6]} 37... Qg3+ {[%clk 0:00:51.1]} 38. Kg1 {[%clk 0:00:10.3]}
38... Re8 {[%clk 0:00:51.4]} 0-1

[Event "Late-Titled-Tuesday-Blitz-October-10-2023"]
[Site "Chess.com"]
[Date "2023.10.10"]
[Round "11"]
[White "Smiechu"]
[Black "MaxLeto"]
[Result "0-1"]
[WhiteElo "2501"]
[BlackElo "2498"]
[TimeControl "180+1"]
[EndTime "16:00:27 PDT"]
[Termination "MaxLeto won by checkmate"]

1. e4 {[%clk 0:03:00.9]} 1... c5 {[%clk 0:02:59.2]} 2. Nf3 {[%clk 0:03:00.6]}
2... d6 {[%clk 0:02:58.3]} 3. d4 {[%clk 0:03:00.8]} 3... cxd4 {[%clk 0:02:59.2]}
4. Nxd4 {[%clk 0:03:01.2]} 4... Nf6 {[%clk 0:02:59.8]} 5. Nc3 {[%clk 0:03:01.5]}
5... a6 {[%clk 0:03:00.3]} 6. Be3 {[%clk 0:03:01.6]} 6... Ng4 {[%clk 0:03:00.3]}
7. Bc1 {[%clk 0:03:00.4]} 7... Nf6 {[%clk 0:03:00.3]} 8. Nb3 {[%clk 0:03:00.5]}
8... e6 {[%clk 0:02:58.7]} 9. g4 {[%clk 0:02:58.3]} 9... Be7 {[%clk 0:02:58.3]}
10. g5 {[%clk 0:02:56.6]} 10... Nfd7 {[%clk 0:02:58.2]} 11. h4 {[%clk
0:02:56.8]} 11... b5 {[%clk 0:02:58.7]} 12. Be3 {[%clk 0:02:54]} 12... Bb7
{[%clk 0:02:59]} 13. Bg2 {[%clk 0:02:53.9]} 13... Ne5 {[%clk 0:02:57.7]} 14. Qe2
{[%clk 0:02:52.2]} 14... Nc4 {[%clk 0:02:56]} 15. O-O-O {[%clk 0:02:50.2]} 15...
Nd7 {[%clk 0:02:48.1]} 16. f4 {[%clk 0:02:46.9]} 16... Qc7 {[%clk 0:02:32.9]}
17. f5 {[%clk 0:02:23]} 17... Nxe3 {[%clk 0:02:19.8]} 18. Qxe3 {[%clk
0:02:21.8]} 18... Ne5 {[%clk 0:02:20.7]} 19. fxe6 {[%clk 0:02:17.2]} 19... fxe6
{[%clk 0:02:21.6]} 20. Bh3 {[%clk 0:02:15.3]} 20... Nc4 {[%clk 0:02:14.7]} 21.
Qe2 {[%clk 0:02:10.1]} 21... e5 {[%clk 0:02:08.1]} 22. Nd5 {[%clk 0:01:59.7]}
22... Bxd5 {[%clk 0:02:07.6]} 23. Rxd5 {[%clk 0:01:59.6]} 23... O-O {[%clk
0:02:06.2]} 24. Rdd1 {[%clk 0:01:31]} 24... Rf4 {[%clk 0:02:05.4]} 25. Nd2
{[%clk 0:01:22.7]} 25... Raf8 {[%clk 0:01:55.4]} 26. Nxc4 {[%clk 0:01:20.6]}
26... bxc4 {[%clk 0:01:56.3]} 27. Be6+ {[%clk 0:01:19.4]} 27... Kh8 {[%clk
0:01:55.8]} 28. Rhf1 {[%clk 0:01:15.9]} 28... c3 {[%clk 0:01:54.4]} 29. Rxf4
{[%clk 0:00:57.3]} 29... Rxf4 {[%clk 0:01:30]} 30. Rf1 {[%clk 0:00:55.8]} 30...
Rxh4 {[%clk 0:01:24.7]} 31. Qxa6 {[%clk 0:00:45.3]} 31... Bxg5+ {[%clk 0:01:22]}
32. Kb1 {[%clk 0:00:44.5]} 32... Rf4 {[%clk 0:01:12.4]} 33. Rg1 {[%clk
0:00:33.8]} 33... h6 {[%clk 0:01:08]} 34. Qe2 {[%clk 0:00:18.4]} 34... Qb7
{[%clk 0:01:02.7]} 35. Bb3 {[%clk 0:00:15.2]} 35... Rxe4 {[%clk 0:00:56.4]} 36.
Qf2 {[%clk 0:00:09.6]} 36... Rf4 {[%clk 0:00:54.3]} 37. Qe2 {[%clk 0:00:09]}
37... cxb2 {[%clk 0:00:51]} 38. a4 {[%clk 0:00:04.5]} 38... Bf6 {[%clk
0:00:49.5]} 39. Qg2 {[%clk 0:00:01.5]} 39... Qxg2 {[%clk 0:00:42.4]} 40. Rxg2
{[%clk 0:00:02.4]} 40... e4 {[%clk 0:00:43.2]} 41. a5 {[%clk 0:00:02.6]} 41...
Rf1+ {[%clk 0:00:42.8]} 42. Ka2 {[%clk 0:00:01.6]} 42... Ra1# {[%clk 0:00:42.6]}
0-1

[Event "Late-Titled-Tuesday-Blitz-October-10-2023"]
[Site "Chess.com"]
[Date "2023.10.10"]
[Round "11"]
[White "mishanick"]
[Black "Cayse"]
[Result "1-0"]
[WhiteElo "3091"]
[BlackElo "2889"]
[TimeControl "180+1"]
[EndTime "16:00:29 PDT"]
[Termination "mishanick won on time"]

1. d4 {[%clk 0:03:00.9]} 1... d5 {[%clk 0:02:59.7]} 2. c4 {[%clk 0:03:01.2]}
2... e6 {[%clk 0:03:00]} 3. Nc3 {[%clk 0:03:01.6]} 3... Nf6 {[%clk 0:03:00]} 4.
Nf3 {[%clk 0:03:01.6]} 4... Nbd7 {[%clk 0:02:59.3]} 5. cxd5 {[%clk 0:02:57.6]}
5... exd5 {[%clk 0:02:58.8]} 6. Bg5 {[%clk 0:02:58.3]} 6... Bb4 {[%clk
0:02:58.9]} 7. e3 {[%clk 0:02:52.6]} 7... c5 {[%clk 0:02:59]} 8. Bd3 {[%clk
0:02:51.8]} 8... Qa5 {[%clk 0:02:59]} 9. O-O {[%clk 0:02:51.5]} 9... c4 {[%clk
0:02:55.2]} 10. Bf5 {[%clk 0:02:51]} 10... O-O {[%clk 0:02:53.3]} 11. Qc2 {[%clk
0:02:49.5]} 11... Re8 {[%clk 0:02:49.3]} 12. Rfb1 {[%clk 0:02:46.8]} 12... g6
{[%clk 0:02:43.7]} 13. Bh3 {[%clk 0:02:41.7]} 13... Kg7 {[%clk 0:01:43.1]} 14.
Nd2 {[%clk 0:02:20.8]} 14... h6 {[%clk 0:01:39.9]} 15. Bf4 {[%clk 0:02:17.8]}
15... Nh5 {[%clk 0:01:33.3]} 16. Bxd7 {[%clk 0:02:16.7]} 16... Bxd7 {[%clk
0:01:32.9]} 17. Be5+ {[%clk 0:02:17.3]} 17... f6 {[%clk 0:01:32.9]} 18. Bg3
{[%clk 0:02:16.3]} 18... Bf5 {[%clk 0:01:17.7]} 19. e4 {[%clk 0:02:15.8]} 19...
dxe4 {[%clk 0:01:17.9]} 20. Nxc4 {[%clk 0:02:15.8]} 20... Qa6 {[%clk 0:01:17.1]}
21. Ne3 {[%clk 0:02:15.7]} 21... Rac8 {[%clk 0:00:56.4]} 22. Qb3 {[%clk
0:02:13.4]} 22... Bf8 {[%clk 0:00:48.7]} 23. Nxf5+ {[%clk 0:01:52.6]} 23... gxf5
{[%clk 0:00:48.4]} 24. Nd5 {[%clk 0:01:53.4]} 24... Red8 {[%clk 0:00:44.3]} 25.
Ne3 {[%clk 0:01:52.5]} 25... Kg6 {[%clk 0:00:27]} 26. Rc1 {[%clk 0:01:21.4]}
26... Bg7 {[%clk 0:00:17.9]} 27. Rxc8 {[%clk 0:01:14.3]} 27... Rxc8 {[%clk
0:00:18.8]} 28. Qd5 {[%clk 0:01:13.2]} 28... Nxg3 {[%clk 0:00:07.4]} 29. hxg3
{[%clk 0:01:14.1]} 29... Qc6 {[%clk 0:00:07.5]} 30. Qxf5+ {[%clk 0:01:13.8]}
30... Kf7 {[%clk 0:00:08.2]} 31. d5 {[%clk 0:01:13.2]} 31... Qc5 {[%clk
0:00:05.4]} 32. Qe6+ {[%clk 0:01:12.6]} 32... Kf8 {[%clk 0:00:05.2]} 33. Qxe4
{[%clk 0:01:12.7]} 33... Re8 {[%clk 0:00:04.9]} 34. Qd3 {[%clk 0:01:12.1]} 34...
f5 {[%clk 0:00:03.6]} 35. Nxf5 {[%clk 0:01:12.2]} 35... Bxb2 {[%clk 0:00:03.1]}
36. Rb1 {[%clk 0:01:12.2]} 36... Bf6 {[%clk 0:00:02.9]} 37. d6 {[%clk
0:01:06.7]} 37... b6 {[%clk 0:00:02.3]} 38. d7 {[%clk 0:01:06.2]} 38... Rd8
{[%clk 0:00:02.7]} 39. Re1 {[%clk 0:01:05]} 39... Qc6 {[%clk 0:00:02.3]} 40. Rd1
{[%clk 0:00:49.3]} 40... Qe6 {[%clk 0:00:01.7]} 41. a4 {[%clk 0:00:48.9]} 41...
h5 {[%clk 0:00:01.3]} 42. Ne3 {[%clk 0:00:43.6]} 1-0